fUST/lending_fUST_20250704
["ID","MTS","AMOUNT","RATE_DAILY","PERIOD"]
[369515023,1751605848038,-635.52,0.00016712,2]
[369515025,1751605848049,-465.4558412,0.00016712,2]
[369515027,1751605848058,-460.0,0.00016712,2]
[369515029,1751605848068,-460.0,0.00016712,2]
[369515031,1751605848079,-460.0,0.00016712,2]
[369515033,1751605848089,-505.56574297,0.00016712,2]
[369515035,1751605848098,-460.0,0.00016712,2]
[369515037,1751605848108,-510.66,0.00016712,2]
[369515039,1751605848117,-555.52,0.00016712,2]
[369515041,1751605848126,-460.0,0.00016712,2]
[369515043,1751605848136,-460.0,0.00016712,2]
[369515045,1751605848145,-1759.32,0.00016712,2]
[369515047,1751605848155,-718.3,0.00016712,2]
[369515049,1751605848165,-460.0,0.00016712,2]
[369515051,1751605848174,-460.0,0.00016712,2]
[369515053,1751605848184,-460.0,0.00016712,2]
[369515055,1751605848194,-460.0,0.00016712,2]
[369515057,1751605848203,-460.0,0.00016712,2]
[369515059,1751605848213,-460.0,0.00016712,2]
[369515061,1751605848222,-460.0,0.00016712,2]
[369515063,1751605848232,-460.0,0.00016712,2]
[369515065,1751605848241,-460.0,0.00016712,2]
[369515067,1751605848251,-460.0,0.00016712,2]
[369515070,1751605848262,-500.0,0.00016712,2]
[369515072,1751605848272,-460.0,0.00016712,2]
[369515074,1751605848282,-460.0,0.00016712,2]
[369515076,1751605848292,-411.28670444,0.00016712,2]
[369515078,1751605848301,-521.2,0.00016712,2]
[369515080,1751605848311,-429.94241859,0.00016712,2]
[369515082,1751605848320,-460.0,0.00016712,2]
[369515084,1751605848330,-460.0,0.00016712,2]
[369515086,1751605848339,-460.0,0.00016712,2]
[369515088,1751605848349,-460.0,0.00016712,2]
[369515090,1751605848358,-460.0,0.00016712,2]
[369515092,1751605848368,-460.0,0.00016712,2]
[369515094,1751605848378,-460.0,0.00016712,2]
[369515096,1751605848388,-460.0,0.00016712,2]
[369515098,1751605848398,-461.0258678,0.00016712,2]
[369515100,1751605848408,-688.19,0.00016712,2]
[369515102,1751605848421,-500.0,0.00016712,2]
[369515104,1751605848435,-460.0,0.00016712,2]
[369515106,1751605848445,-460.0,0.00016712,2]
[369515108,1751605848455,-460.0,0.00016712,2]
[369515110,1751605848464,-460.0,0.00016712,2]
[369515112,1751605848474,-460.0,0.00016712,2]
[369515114,1751605848484,-460.0,0.00016712,2]
[369515116,1751605848494,-503.80994734,0.00016712,2]
[369515118,1751605848504,-3849.47,0.00016712,2]
[369515120,1751605848514,-493.6,0.00016712,2]
[369515122,1751605848523,-460.0,0.00016712,2]
[369515124,1751605848533,-167.82134992,0.00016712,2]
[369515126,1751605848542,-460.0,0.00016712,2]
[369515129,1751605848552,-273.63450792,0.00016712,2]
[369515131,1751605848562,-460.0,0.00016712,2]
[369515132,1751605848571,-500.0,0.00016773,2]
[369515134,1751605848581,-496.85038165,0.00016773,2]
[369515136,1751605848591,-500.0,0.00016773,2]
[369515139,1751605848601,-500.0,0.00016773,2]
[369515140,1751605848610,-500.0,0.00016773,2]
[369515142,1751605848620,-500.0,0.00016773,2]
[369515144,1751605848630,-431.04243503,0.00016773,2]
[369515146,1751605848640,-500.0,0.00016773,2]
[369515148,1751605848650,-500.22176012,0.00016773,2]
[369515150,1751605848659,-500.0,0.00016773,2]
[369515152,1751605848669,-500.92298807,0.00016773,2]
[369515154,1751605848678,-502.76594591,0.00016773,2]
[369515156,1751605848688,-332.14239049,0.00016773,2]
[369515158,1751605848697,-172.43431246,0.00016773,2]
[369515160,1751605848707,-500.0,0.00016773,2]
[369515162,1751605848717,-500.0,0.00016773,2]
[369515165,1751605848727,-1080.90741833,0.00016773,2]
[369515166,1751605848736,-151.0,0.000168,2]
[369515169,1751605848746,-420.0,0.0001685,2]
[369515171,1751605848756,-151.0,0.00016855,2]
[369515173,1751605848766,-370000.0,0.00016855,2]
[369515175,1751605848776,-500.0,0.00016873,2]
[369515177,1751605848786,-542.01722619,0.00016873,2]
[369515179,1751605848795,-619.10558997,0.00016873,2]
[369515181,1751605848804,-500.0,0.00016873,2]
[369515183,1751605848813,-3551.41856255,0.000169,2]
[369515185,1751605848823,-297.5271301,0.00016907,2]
[369515187,1751605848833,-447.90001521,0.00016986,2]
[369515189,1751605848842,-500.0,0.00016986,2]
[369515191,1751605848852,-460.0,0.00016986,2]
[369515193,1751605848861,-460.0,0.00016986,2]
[369515195,1751605848871,-460.0,0.00016986,2]
[369515197,1751605848880,-543.47,0.00016986,2]
[369515199,1751605848889,-460.0,0.00016986,2]
[369515201,1751605848899,-460.0,0.00016986,2]
[369515203,1751605848909,-332.84948558,0.00016986,2]
[369515205,1751605848918,-475.2591995,0.00016986,2]
[369515207,1751605848927,-201.6,0.00016986,2]
[369515209,1751605848937,-551.37016986,0.00016986,2]
[369515211,1751605848946,-209.73028617,0.00016986,2]
[369515213,1751605848955,-460.0,0.00016986,2]
[369515215,1751605848964,-539.95,0.00016986,2]
[369515217,1751605848974,-347.66986415,0.00016986,2]
[369515219,1751605848983,-460.0,0.00016986,2]
[369515221,1751605848992,-223.54,0.00016986,2]
[369515223,1751605849004,-460.0,0.00016986,2]
[369515225,1751605849014,-460.0,0.00016986,2]
[369515227,1751605849024,-327.14,0.00016986,2]
[369515229,1751605849033,-462.04179731,0.00016986,2]
[369515231,1751605849042,-253.2318598,0.00016986,2]
[369515233,1751605849054,-460.0,0.00016986,2]
[369515235,1751605849064,-460.0,0.00016986,2]
[369515237,1751605849073,-460.0,0.00016986,2]
[369515239,1751605849085,-460.0,0.00016986,2]
[369515241,1751605849097,-504.31036695,0.00016986,2]
[369515243,1751605849106,-487.54,0.00016986,2]
[369515245,1751605849116,-460.0,0.00016986,2]
[369515247,1751605849125,-460.0,0.00016986,2]
[369515249,1751605849135,-460.0,0.00016986,2]
[369515251,1751605849145,-460.0,0.00016986,2]
[369515253,1751605849154,-460.0,0.00016986,2]
[369515255,1751605849165,-505.08146037,0.00016986,2]
[369515257,1751605849175,-460.0,0.00016986,2]
[369515259,1751605849184,-460.0,0.00016986,2]
[369515261,1751605849195,-460.0,0.00016986,2]
[369515262,1751605849205,-491.1,0.00016986,2]
[369515263,1751605849214,-460.0,0.00016986,2]
[369515264,1751605849224,-460.0,0.00016986,2]
[369515265,1751605849234,-460.0,0.00016986,2]
[369515266,1751605849244,-460.0,0.00016986,2]
[369515267,1751605849254,-460.0,0.00016986,2]
[369515268,1751605849264,-540.0,0.00016986,2]
[369515269,1751605849274,-460.0,0.00016986,2]
[369515270,1751605849283,-460.0,0.00016986,2]
[369515271,1751605849292,-460.0,0.00016986,2]
[369515272,1751605849303,-460.0,0.00016986,2]
[369515273,1751605849313,-460.0,0.00016986,2]
[369515274,1751605849323,-500.0,0.00016986,2]
[369515275,1751605849332,-460.0,0.00016986,2]
[369515276,1751605849342,-560.04,0.00016986,2]
[369515277,1751605849352,-460.0,0.00016986,2]
[369515278,1751605849361,-460.0,0.00016986,2]
[369515279,1751605849370,-460.0,0.00016986,2]
[369515280,1751605849379,-578.8,0.00016986,2]
[369515281,1751605849388,-460.0,0.00016986,2]
[369515282,1751605849398,-502.24833765,0.00016986,2]
[369515283,1751605849408,-293.68,0.00016986,2]
[369515284,1751605849418,-519.3633059,0.00016986,2]
[369515285,1751605849427,-460.0,0.00016986,2]
[369515286,1751605849437,-460.0,0.00016986,2]
[369515287,1751605849446,-460.0,0.00016986,2]
[369515289,1751605849455,-460.0,0.00016986,2]
[369515291,1751605849465,-500.0,0.00016986,2]
[369515293,1751605849475,-460.0,0.00016986,2]
[369515296,1751605849485,-324.4,0.00016986,2]
[369515298,1751605849494,-460.0,0.00016986,2]
[369515300,1751605849504,-460.0,0.00016986,2]
[369515302,1751605849514,-531.94144808,0.00016986,2]
[369515304,1751605849523,-460.0,0.00016986,2]
[369515305,1751605849533,-394.46471391,0.00016986,2]
[369515308,1751605849543,-460.0,0.00016986,2]
[369515310,1751605849552,-462.14009267,0.00016986,2]
[369515311,1751605849562,-460.0,0.00016986,2]
[369515313,1751605849571,-460.0,0.00016986,2]
[369515315,1751605849580,-503.78892081,0.00016986,2]
[369515317,1751605849591,-460.0,0.00016986,2]
[369515319,1751605849600,-460.0,0.00016986,2]
[369515321,1751605849609,-460.0,0.00016986,2]
[369515323,1751605849620,-460.0,0.00016986,2]
[369515325,1751605849629,-460.0,0.00016986,2]
[369515327,1751605849639,-460.0,0.00016986,2]
[369515329,1751605849648,-460.0,0.00016986,2]
[369515331,1751605849657,-501.5871635,0.00016986,2]
[369515333,1751605849667,-460.0,0.00016986,2]
[369515335,1751605849676,-460.0,0.00016986,2]
[369515337,1751605849686,-460.0,0.00016986,2]
[369515339,1751605849695,-460.0,0.00016986,2]
[369515341,1751605849704,-460.0,0.00016986,2]
[369515343,1751605849714,-321.58139365,0.00016986,2]
[369515345,1751605849724,-460.0,0.00016986,2]
[369515347,1751605849733,-460.0,0.00016986,2]
[369515349,1751605849743,-500.0,0.00016986,2]
[369515351,1751605849752,-568.76,0.00016986,2]
[369515353,1751605849762,-467.5406635,0.00016986,2]
[369515355,1751605849772,-460.0,0.00016986,2]
[369515357,1751605849782,-594.71492387,0.00016986,2]
[369515359,1751605849791,-460.0,0.00016986,2]
[369515361,1751605849801,-460.0,0.00016986,2]
[369515363,1751605849810,-465.30658399,0.00016986,2]
[369515365,1751605849819,-460.0,0.00016986,2]
[369515367,1751605849829,-464.34316879,0.00016986,2]
[369515369,1751605849838,-460.0,0.00016986,2]
[369515371,1751605849847,-460.0,0.00016986,2]
[369515373,1751605849856,-628.33,0.00016986,2]
[369515375,1751605849865,-460.0,0.00016986,2]
[369515377,1751605849875,-463.68429788,0.00016986,2]
[369515379,1751605849885,-460.0,0.00016986,2]
[369515381,1751605849895,-463.94790782,0.00016986,2]
[369515383,1751605849905,-523.39305156,0.00016986,2]
[369515385,1751605849916,-314.88169775,0.00016986,2]
[369515387,1751605849926,-460.0,0.00016986,2]
[369515389,1751605849935,-460.0,0.00016986,2]
[369515391,1751605849944,-919.75,0.00016986,2]
[369515393,1751605849953,-460.0,0.00016986,2]
[369515395,1751605849962,-460.0,0.00016986,2]
[369515397,1751605849972,-3139.72,0.00016986,2]
[369515399,1751605849981,-460.0,0.00016986,2]
[369515401,1751605849990,-460.0,0.00016986,2]
[369515403,1751605850000,-392.19541064,0.00016986,2]
[369515405,1751605850011,-460.0,0.00016986,2]
[369515407,1751605850020,-582.92691377,0.00016986,2]
[369515409,1751605850030,-460.0,0.00016986,2]
[369515411,1751605850039,-460.0,0.00016986,2]
[369515413,1751605850051,-460.0,0.00016986,2]
[369515415,1751605850060,-460.0,0.00016986,2]
[369515417,1751605850070,-446.64713136,0.00016986,2]
[369515419,1751605850081,-859.14,0.00016986,2]
[369515421,1751605850090,-460.0,0.00016986,2]
[369515423,1751605850100,-462.19391986,0.00016986,2]
[369515425,1751605850111,-460.0,0.00016986,2]
[369515427,1751605850120,-460.0,0.00016986,2]
[369515429,1751605850130,-460.0,0.00016986,2]
[369515431,1751605850140,-1131.47,0.00016986,2]
[369515433,1751605850149,-460.0,0.00016986,2]
[369515435,1751605850159,-460.0,0.00016986,2]
[369515437,1751605850168,-460.0,0.00016986,2]
[369515439,1751605850178,-460.0,0.00016986,2]
[369515441,1751605850187,-460.0,0.00016986,2]
[369515443,1751605850196,-460.0,0.00016986,2]
[369515445,1751605850206,-1049.59,0.00016986,2]
[369515447,1751605850216,-460.0,0.00016986,2]
[369515449,1751605850225,-334.42538936,0.00016986,2]
[369515451,1751605850235,-460.0,0.00016986,2]
[369515453,1751605850244,-460.0,0.00016986,2]
[369515455,1751605850253,-460.0,0.00016986,2]
[369515457,1751605850263,-460.0,0.00016986,2]
[369515459,1751605850272,-460.0,0.00016986,2]
[369515461,1751605850281,-460.0,0.00016986,2]
[369515463,1751605850290,-464.04091824,0.00016986,2]
[369515465,1751605850300,-2558.01,0.00016986,2]
[369515467,1751605850309,-460.0,0.00016986,2]
[369515469,1751605850319,-324.79762299,0.00016986,2]
[369515471,1751605850328,-523.62771208,0.00016986,2]
[369515473,1751605850337,-516.81,0.00016986,2]
[369515475,1751605850346,-577.33,0.00016986,2]
[369515477,1751605850356,-1982.33,0.00016986,2]
[369515479,1751605850365,-1021.29,0.00016986,2]
[369515481,1751605850374,-1303.41,0.00016986,2]
[369515483,1751605850383,-460.0,0.00016986,2]
[369515485,1751605850393,-460.0,0.00016986,2]
[369515487,1751605850402,-460.0,0.00016986,2]
[369515489,1751605850411,-460.0,0.00016986,2]
[369515491,1751605850420,-460.0,0.00016986,2]
[369515493,1751605850430,-599.57,0.00016986,2]
[369515495,1751605850439,-460.0,0.00016986,2]
[369515497,1751605850449,-460.0,0.00016986,2]
[369515499,1751605850458,-460.0,0.00016986,2]
[369515501,1751605850467,-460.0,0.00016986,2]
[369515503,1751605850477,-250.00241191,0.00016986,2]
[369515505,1751605850486,-469.85,0.00016986,2]
[369515507,1751605850495,-530.06,0.00016986,2]
[369515509,1751605850505,-460.0,0.00016986,2]
[369515511,1751605850515,-460.0,0.00016986,2]
[369515513,1751605850525,-460.0,0.00016986,2]
[369515515,1751605850534,-460.0,0.00016986,2]
[369515517,1751605850543,-460.0,0.00016986,2]
[369515519,1751605850552,-460.0,0.00016986,2]
[369515521,1751605850562,-460.0,0.00016986,2]
[369515523,1751605850571,-460.0,0.00016986,2]
[369515525,1751605850581,-460.0,0.00016986,2]
[369515527,1751605850591,-460.0,0.00016986,2]
[369515529,1751605850600,-460.0,0.00016986,2]
[369515531,1751605850610,-460.0,0.00016986,2]
[369515533,1751605850618,-460.0,0.00016986,2]
[369515536,1751605850631,-460.0,0.00016986,2]
[369515538,1751605850640,-532.3,0.00016986,2]
[369515540,1751605850650,-460.0,0.00016986,2]
[369515541,1751605850659,-460.0,0.00016986,2]
[369515544,1751605850669,-591.24327461,0.00016986,2]
[369515546,1751605850678,-460.0,0.00016986,2]
[369515548,1751605850687,-460.0,0.00016986,2]
[369515550,1751605850697,-2038.09,0.00016986,2]
[369515552,1751605850706,-460.0,0.00016986,2]
[369515553,1751605850715,-460.0,0.00016986,2]
[369515556,1751605850728,-460.0,0.00016986,2]
[369515571,1751605850858,-460.08714833,0.00016986,2]
[369515573,1751605850868,-464.61735849,0.00016986,2]
[369515575,1751605850877,-460.0,0.00016986,2]
[369515577,1751605850887,-252.68105196,0.00016986,2]
[369515579,1751605850896,-460.0,0.00016986,2]
[369515581,1751605850905,-464.57086752,0.00016986,2]
[369515583,1751605850914,-519.78,0.00016986,2]
[369515585,1751605850923,-1746.65,0.00016986,2]
[369515587,1751605850933,-2881.18,0.00016986,2]
[369515589,1751605850943,-470.32514972,0.00016986,2]
[369515591,1751605850952,-460.0,0.00016986,2]
[369515593,1751605850962,-460.0,0.00016986,2]
[369515595,1751605850972,-460.0,0.00016986,2]
[369515597,1751605850981,-460.0,0.00016986,2]
[369515599,1751605850990,-464.06485796,0.00016986,2]
[369515601,1751605851000,-460.0,0.00016986,2]
[369515603,1751605851014,-500.0,0.00016986,2]
[369515605,1751605851023,-537.31,0.00016986,2]
[369515607,1751605851032,-460.0,0.00016986,2]
[369515609,1751605851041,-465.1251016,0.00016986,2]
[369515611,1751605851052,-463.06018701,0.00016986,2]
[369515613,1751605851062,-460.0,0.00016986,2]
[369515615,1751605851071,-460.0,0.00016986,2]
[369515617,1751605851081,-460.0,0.00016986,2]
[369515620,1751605851091,-460.0,0.00016986,2]
[369515621,1751605851100,-460.0,0.00016986,2]
[369515623,1751605851109,-2572.77,0.00016986,2]
[369515626,1751605851119,-537.21973376,0.00016986,2]
[369515628,1751605851128,-460.0,0.00016986,2]
[369515630,1751605851137,-446.7000032,0.00016986,2]
[369515632,1751605851147,-460.0,0.00016986,2]
[369515634,1751605851156,-460.0,0.00016986,2]
[369515636,1751605851165,-290.8610404,0.00016986,2]
[369515637,1751605851174,-460.0,0.00016986,2]
[369515639,1751605851184,-460.0,0.00016986,2]
[369515641,1751605851194,-460.0,0.00016986,2]
[369515644,1751605851203,-460.0,0.00016986,2]
[369515645,1751605851213,-700.6,0.00016986,2]
[369515648,1751605851222,-1360.16,0.00016986,2]
[369515649,1751605851231,-1214.24,0.00016986,2]
[369515651,1751605851241,-460.0,0.00016986,2]
[369515653,1751605851251,-460.0,0.00016986,2]
[369515656,1751605851261,-460.0,0.00016986,2]
[369515658,1751605851270,-460.0,0.00016986,2]
[369515660,1751605851279,-460.0,0.00016986,2]
[369515661,1751605851289,-513.61,0.00016986,2]
[369515664,1751605851298,-263.00981295,0.00016986,2]
[369515665,1751605851307,-460.0,0.00016986,2]
[369515668,1751605851317,-460.0,0.00016986,2]
[369515670,1751605851327,-460.0,0.00016986,2]
[369515672,1751605851337,-460.0,0.00016986,2]
[369515674,1751605851347,-460.0,0.00016986,2]
[369515676,1751605851356,-495.63,0.00016986,2]
[369515678,1751605851365,-460.0,0.00016986,2]
[369515680,1751605851374,-473.76,0.00016986,2]
[369515682,1751605851382,-460.0,0.00016986,2]
[369515684,1751605851392,-460.0,0.00016986,2]
[369515686,1751605851402,-460.0,0.00016986,2]
[369515688,1751605851411,-1579.87,0.00016986,2]
[369515690,1751605851421,-460.0,0.00016986,2]
[369515692,1751605851430,-460.0,0.00016986,2]
[369515694,1751605851440,-460.0,0.00016986,2]
[369515696,1751605851449,-460.0,0.00016986,2]
[369515698,1751605851459,-588.73,0.00016986,2]
[369515700,1751605851468,-1431.38,0.00016986,2]
[369515702,1751605851478,-202.396469,0.00016986,2]
[369515704,1751605851487,-460.0,0.00016986,2]
[369515706,1751605851497,-477.39,0.00016986,2]
[369515708,1751605851507,-463.13791008,0.00016986,2]
[369515710,1751605851517,-356.50629937,0.00016986,2]
[369515712,1751605851526,-460.0,0.00016986,2]
[369515714,1751605851536,-635.52,0.00016986,2]
[369515716,1751605851545,-460.0,0.00016986,2]
[369515718,1751605851555,-460.0,0.00016986,2]
[369515720,1751605851564,-460.0,0.00016986,2]
[369515722,1751605851574,-510.66,0.00016986,2]
[369515724,1751605851583,-555.52,0.00016986,2]
[369515726,1751605851593,-493.71,0.00016986,2]
[369515728,1751605851602,-460.0,0.00016986,2]
[369515730,1751605851612,-1759.32,0.00016986,2]
[369515732,1751605851622,-718.3,0.00016986,2]
[369515734,1751605851632,-460.0,0.00016986,2]
[369515736,1751605851643,-460.0,0.00016986,2]
[369515738,1751605851653,-460.0,0.00016986,2]
[369515740,1751605851662,-460.0,0.00016986,2]
[369515742,1751605851672,-460.0,0.00016986,2]
[369515744,1751605851682,-460.0,0.00016986,2]
[369515746,1751605851693,-460.0,0.00016986,2]
[369515748,1751605851703,-460.0,0.00016986,2]
[369515750,1751605851712,-460.0,0.00016986,2]
[369515752,1751605851722,-460.0,0.00016986,2]
[369515754,1751605851732,-460.0,0.00016986,2]
[369515756,1751605851741,-460.0,0.00016986,2]
[369515757,1751605851751,-460.0,0.00016986,2]
[369515758,1751605851760,-460.0,0.00016986,2]
[369515759,1751605851769,-458.10525394,0.00016986,2]
[369515760,1751605851778,-540.0,0.00016986,2]
[369515761,1751605851787,-460.0,0.00016986,2]
[369515762,1751605851796,-688.19,0.00016986,2]
[369515763,1751605851806,-472.55883697,0.00016986,2]
[369515764,1751605851815,-230.78,0.00016986,2]
[369515765,1751605851824,-461.23502439,0.00016986,2]
[369515767,1751605851834,-521.83852671,0.00016986,2]
[369515769,1751605851844,-460.0,0.00016986,2]
[369515771,1751605851853,-460.0,0.00016986,2]
[369515773,1751605851863,-3849.47,0.00016986,2]
[369515775,1751605851872,-493.6,0.00016986,2]
[369515777,1751605851881,-466.14470034,0.00016986,2]
[369515779,1751605851890,-540.13851359,0.00016986,2]
[369515781,1751605851900,-357.65,0.00016986,2]
[369515784,1751605851909,-247.364,0.00016994,2]
[369515786,1751605851918,-250.0,0.00016994,2]
[369515788,1751605851927,-151.0,0.00017,2]
[369515790,1751605851936,-151.0,0.000171,2]
[369515792,1751605851946,-230.40116161,0.00017128,2]
[369515794,1751605851955,-160.0,0.00017128,2]
[369515796,1751605851966,-160.0,0.00017128,2]
[369515798,1751605851975,-160.0,0.00017128,2]
[369515800,1751605851984,-12578.03337979,0.00017128,2]
[369515802,1751605851994,-215.11129906,0.00017128,2]
[369515804,1751605852011,-213.97741257,0.00017128,2]
[369515806,1751605852022,-837.48520791,0.00017128,2]
[369515808,1751605852031,-847.91215827,0.00017128,2]
[369515810,1751605852042,-160.0,0.00017128,2]
[369515812,1751605852051,-3551.41856237,0.00017176,2]
[369515814,1751605852060,-151.0,0.000172,2]
[369515816,1751605852070,-985.98404904,0.00017227,2]
[369515818,1751605852081,-470.03970522,0.0001726,2]
[369515820,1751605852090,-440.0,0.0001726,2]
[369515822,1751605852101,-460.0,0.0001726,2]
[369515824,1751605852111,-460.0,0.0001726,2]
[369515826,1751605852120,-500.0,0.0001726,2]
[369515828,1751605852129,-460.0,0.0001726,2]
[369515830,1751605852138,-460.0,0.0001726,2]
[369515832,1751605852148,-460.0,0.0001726,2]
[369515833,1751605852158,-209.73174028,0.0001726,2]
[369515835,1751605852168,-460.0,0.0001726,2]
[369515837,1751605852177,-487.54,0.0001726,2]
[369515839,1751605852186,-563.56,0.0001726,2]
[369515841,1751605852195,-460.0,0.0001726,2]
[369515843,1751605852204,-460.0,0.0001726,2]
[369515845,1751605852214,-460.0,0.0001726,2]
[369515847,1751605852224,-340.47804534,0.0001726,2]
[369515849,1751605852234,-460.0,0.0001726,2]
[369515851,1751605852243,-460.0,0.0001726,2]
[369515853,1751605852252,-389.56,0.0001726,2]
[369515855,1751605852262,-291.78,0.0001726,2]
[369515857,1751605852271,-460.0,0.0001726,2]
[369515860,1751605852282,-460.0,0.0001726,2]
[369515861,1751605852292,-460.0,0.0001726,2]
[369515864,1751605852301,-460.0,0.0001726,2]
[369515866,1751605852311,-460.0,0.0001726,2]
[369515868,1751605852320,-460.0,0.0001726,2]
[369515870,1751605852330,-460.0,0.0001726,2]
[369515872,1751605852339,-460.0,0.0001726,2]
[369515874,1751605852349,-460.0,0.0001726,2]
[369515876,1751605852358,-553.03,0.0001726,2]
[369515878,1751605852367,-502.6274098,0.0001726,2]
[369515880,1751605852377,-160.0,0.0001726,2]
[369515882,1751605852386,-340.77018478,0.0001726,2]
[369515884,1751605852396,-460.0,0.0001726,2]
[369515886,1751605852405,-460.0,0.0001726,2]
[369515888,1751605852415,-572.53106737,0.0001726,2]
[369515890,1751605852424,-460.0,0.0001726,2]
[369515892,1751605852433,-460.0,0.0001726,2]
[369515894,1751605852444,-448.35213486,0.0001726,2]
[369515896,1751605852453,-460.0,0.0001726,2]
[369515898,1751605852462,-502.72190173,0.0001726,2]
[369515900,1751605852472,-471.3460106,0.0001726,2]
[369515902,1751605852481,-460.0,0.0001726,2]
[369515904,1751605852491,-460.0,0.0001726,2]
[369515906,1751605852501,-460.0,0.0001726,2]
[369515908,1751605852511,-460.0,0.0001726,2]
[369515910,1751605852520,-460.0,0.0001726,2]
[369515912,1751605852529,-298.2921009,0.0001726,2]
[369515914,1751605852539,-544.63,0.0001726,2]
[369515916,1751605852548,-605.84463201,0.0001726,2]
[369515918,1751605852557,-471.12990951,0.0001726,2]
[369515920,1751605852567,-460.0,0.0001726,2]
[369515922,1751605852576,-568.76,0.0001726,2]
[369515924,1751605852586,-460.0,0.0001726,2]
[369515926,1751605852595,-460.0,0.0001726,2]
[369515928,1751605852604,-460.0,0.0001726,2]
[369515930,1751605852614,-227.43803393,0.0001726,2]
[369515932,1751605852624,-484.67,0.0001726,2]
[369515934,1751605852634,-460.0,0.0001726,2]
[369515936,1751605852643,-628.33,0.0001726,2]
[369515938,1751605852652,-460.0,0.0001726,2]
[369515940,1751605852663,-460.0,0.0001726,2]
[369515942,1751605852672,-392.60810941,0.0001726,2]
[369515944,1751605852681,-919.75,0.0001726,2]
[369515946,1751605852691,-460.0,0.0001726,2]
[369515948,1751605852700,-460.0,0.0001726,2]
[369515950,1751605852710,-3139.72,0.0001726,2]
[369515952,1751605852719,-460.0,0.0001726,2]
[369515954,1751605852728,-460.0,0.0001726,2]
[369515956,1751605852738,-460.0,0.0001726,2]
[369515958,1751605852748,-460.0,0.0001726,2]
[369515960,1751605852757,-460.0,0.0001726,2]
[369515962,1751605852768,-460.0,0.0001726,2]
[369515964,1751605852777,-460.0,0.0001726,2]
[369515966,1751605852787,-859.14,0.0001726,2]
[369515968,1751605852797,-462.61726036,0.0001726,2]
[369515970,1751605852807,-460.0,0.0001726,2]
[369515972,1751605852817,-460.0,0.0001726,2]
[369515974,1751605852826,-1131.47,0.0001726,2]
[369515976,1751605852836,-460.0,0.0001726,2]
[369515978,1751605852845,-367.02245973,0.0001726,2]
[369515981,1751605852854,-460.0,0.0001726,2]
[369515983,1751605852863,-466.72025087,0.0001726,2]
[369515985,1751605852873,-460.0,0.0001726,2]
[369515987,1751605852883,-1049.59,0.0001726,2]
[369515989,1751605852892,-460.0,0.0001726,2]
[369515991,1751605852901,-460.0,0.0001726,2]
[369515993,1751605852910,-460.0,0.0001726,2]
[369515995,1751605852920,-460.0,0.0001726,2]
[369515997,1751605852929,-334.30685836,0.0001726,2]
[369515999,1751605852939,-460.0,0.0001726,2]
[369516001,1751605852949,-460.0,0.0001726,2]
[369516003,1751605852959,-2558.01,0.0001726,2]
[369516005,1751605852968,-500.0,0.0001726,2]